fUST/lending_fUST_20240425
["ID","MTS","AMOUNT","RATE_DAILY","PERIOD"]
[323485957,1714045840533,-25.81315065,0.00016068,2]
[323485962,1714045840581,-125.18684935,0.00016068,2]
[323485964,1714045840591,-151.0,0.00016101,2]
[323485965,1714045840600,-151.0,0.00016101,2]
[323485967,1714045840609,-151.0,0.00016101,2]
[323485969,1714045840619,-151.0,0.00016101,2]
[323485971,1714045840628,-151.0,0.00016101,2]
[323485973,1714045840638,-151.0,0.00016101,2]
[323485975,1714045840647,-151.0,0.00016101,2]
[323485976,1714045840656,-151.0,0.00016101,2]
[323485978,1714045840665,-151.0,0.00016101,2]
[323485980,1714045840674,-151.0,0.00016101,2]
[323485982,1714045840683,-151.0,0.00016101,2]
[323485984,1714045840692,-151.0,0.00016101,2]
[323485986,1714045840702,-768.97420886,0.00016101,2]
[323485988,1714045840714,-727.53424114,0.00016101,2]
[323485990,1714045840723,-1496.50845,0.00016101,2]
[323485991,1714045840732,-232.795982,0.00016101,2]
[323485993,1714045840741,-232.795982,0.00016101,2]
[323485995,1714045840750,-151.0,0.00016101,2]
[323485997,1714045840758,-151.0,0.00016101,2]
[323485999,1714045840767,-151.0,0.00016101,2]
[323486001,1714045840777,-151.0,0.00016101,2]
[323486002,1714045840786,-151.0,0.00016101,2]
[323486004,1714045840796,-151.0,0.00016101,2]
[323486006,1714045840805,-151.0,0.00016101,2]
[323486008,1714045840814,-270.399222,0.00016101,2]
[323486010,1714045840823,-151.0,0.00016101,2]
[323486011,1714045840832,-151.0,0.00016101,2]
[323486013,1714045840841,-1233.45121387,0.00016101,2]
[323486015,1714045840852,-294.63843213,0.00016101,2]
[323486017,1714045840861,-1231.87802701,0.00016101,2]
[323486019,1714045840874,-296.21161899,0.00016101,2]
[323486021,1714045840885,-156.241413,0.00016101,2]
[323486023,1714045840894,-828.86593851,0.00016101,2]
[323487348,1714045971714,454.40797181,0.000111,2]
[323487350,1714046044361,1000.0,0.0001222,3]
[323487351,1714046068541,1000.0,0.0001222,3]
[323487353,1714046083333,1000.0,0.0001222,3]
[323487354,1714046107038,1000.0,0.0001222,3]
[323487355,1714046117265,1000.0,0.0001222,3]
[323487356,1714046136577,1000.0,0.0001222,3]
[323487357,1714046141331,1000.0,0.0001222,3]
[323487358,1714046144993,1000.0,0.0001222,3]
[323487359,1714046148417,1000.0,0.0001222,3]
[323487360,1714046152108,1000.0,0.0001222,3]
[323487361,1714046243211,1000.0,0.000124,4]
[323487362,1714046246811,1000.0,0.000124,4]
[323487363,1714046250131,1000.0,0.000124,4]
[323487364,1714046253119,1000.0,0.000124,4]
[323487365,1714046257711,1000.0,0.000124,4]
[323487366,1714046260752,1000.0,0.000124,4]
[323487367,1714046264120,1000.0,0.000124,4]
[323487368,1714046334546,1000.0,0.000124,4]
[323487369,1714046337144,1000.0,0.000124,4]
[323487370,1714046340504,1000.0,0.000124,4]
[323487371,1714046343219,1000.0,0.000124,4]
[323487372,1714046346831,1000.0,0.000124,4]
[323487373,1714046376586,1000.0,0.000124,4]
[323487374,1714046379723,1000.0,0.000124,4]
[323487375,1714046382726,1000.0,0.000124,4]
[323487376,1714046455721,1000.0,0.000124,4]
[323487377,1714046458747,1000.0,0.000124,4]
[323487378,1714046461591,581.46799311,0.000124,4]
[323487380,1714046543498,1000.0,0.0001222,3]
[323487381,1714046552769,1000.0,0.0001222,3]
[323487382,1714046556581,1000.0,0.0001222,3]
[323487383,1714046563891,1000.0,0.0001222,3]
[323487384,1714046679448,357.30835516,0.0001222,3]
[323487558,1714047038597,-1394.84245865,0.00012219,2]
[323487560,1714047038607,-240.0,0.00012219,2]
[323487562,1714047038616,-366.4083419,0.0001222,2]
[323487564,1714047038628,-12762.99189571,0.0001222,2]
[323487813,1714047040729,-2965.58456072,0.0001222,2]
[323487816,1714047040739,-19189.60584741,0.0001222,2]
[323487818,1714047040750,-538.64449696,0.0001222,2]
[323487820,1714047040759,-729.56943069,0.0001222,2]
[323487823,1714047040769,-868.82714359,0.000129,2]
[323487826,1714047040778,-4951.1584059,0.00014577,2]
[323487829,1714047040789,-4674.52062789,0.00014577,2]
[323487840,1714047040841,-1896.90335057,0.00014577,2]
[323487845,1714047040855,-8322.54075554,0.00014577,2]
[323487848,1714047040864,-157.08875643,0.00015,2]
[323487851,1714047040873,-841.75098454,0.00016098,2]
[323487854,1714047040882,-521.52942585,0.00016099,2]
[323487857,1714047040891,-1312.23172207,0.00016099,2]
[323487860,1714047040900,-1097.61455745,0.000161,2]
[323487863,1714047040909,-13583.56677012,0.000161,2]
[323488053,1714047043602,-5079.99167576,0.000161,2]
[323488374,1714047046626,-6405.99999997,0.000161,2]
[323488380,1714047046684,-806.66035076,0.000161,2]
[323489262,1714048238922,-250.0,0.00015697,2]
[323489264,1714048238933,-300.0,0.00016096,2]
[323489267,1714048238945,-300.0,0.00016096,2]
[323489269,1714048238959,-116.01928999,0.00016097,2]
[323489272,1714048238981,-38.86663506,0.00016097,2]
[323489274,1714048238991,-2099.47208497,0.00016097,2]
[323489275,1714048239001,-7765.56127997,0.00016097,2]
[323489521,1714048241391,-320.27,0.00016097,2]
[323489524,1714048241405,-389.07306561,0.00016097,2]
[323489815,1714048244270,-353.095,0.00016097,2]
[323489817,1714048244282,-8.31980448,0.00016097,2]
[323489819,1714048244292,-835.12868552,0.00016097,2]
[323489821,1714048244303,-1057.35627106,0.00016097,2]
[323489823,1714048244313,-155.37912234,0.00016097,2]
[323489825,1714048244323,-155.92113589,0.00016098,2]
[323489828,1714048244333,-214.55621785,0.00016099,2]
[323489831,1714048244344,-6953.43876286,0.00016099,2]
[323489835,1714048244367,-29222.44407628,0.00016099,2]
[323490149,1714048247329,-18806.39999999,0.00016099,2]
[323491117,1714049440277,-990.83464199,0.00015039,2]
[323491792,1714049446436,-8268.04686764,0.00015039,2]
[323491794,1714049446452,-794.5298842,0.00015039,2]
[323492214,1714049851519,1614.43,0.000225,30]
[323492215,1714049865844,1614.43,0.000225,30]
[323492274,1714050632512,-1202.53293628,0.00011498,2]
[323492276,1714050632522,-1490.71180475,0.00011498,2]
[323492279,1714050632532,-408.98014644,0.00011499,2]
[323492282,1714050632541,-250.0,0.00011501,2]
[323492285,1714050632551,-155.08819604,0.00012028,2]
[323492287,1714050632561,-300.0,0.00012106,2]
[323492289,1714050632571,-20971.29649174,0.00012107,2]
[323492291,1714050632586,-882.32852477,0.00012107,2]
[323492336,1714050638248,-3046.37498349,0.00012107,2]
[323492339,1714050638259,-6109.7696736,0.00012759,2]
[323492341,1714050638271,-300.0,0.00013317,2]
[323492343,1714050638286,-300.0,0.00014728,2]
[323492345,1714050638297,-159.77183042,0.00014938,2]
[323492348,1714050638309,-159.77183042,0.00014938,2]
[323492352,1714050638320,-159.77183042,0.00014939,2]
[323492355,1714050638332,-159.77183042,0.00014939,2]
[323492358,1714050638342,-159.77183042,0.00014939,2]
[323492361,1714050638353,-312.71080906,0.00015,2]
[323492364,1714050638364,-938.81449525,0.00015035,2]
[323492367,1714050638376,-6651.66814098,0.00015037,2]
[323492370,1714050638389,-12662.48002661,0.00015037,2]
[323492374,1714050638401,-52710.53463612,0.00015037,2]
[323492376,1714050638413,-581.27512651,0.00015037,2]
[323492378,1714050638426,-33029.40624422,0.00015037,2]
[323492553,1714050640280,-10181.77094426,0.00015037,2]
[323492560,1714050640333,-434.61147891,0.00015037,2]
[323492980,1714050646964,-549.90202406,0.00015037,2]
[323492982,1714050646978,-2752.23,0.00015037,2]
[323492983,1714050647298,-18653.63871793,0.00015037,2]
[323492993,1714050979583,365.0,0.000225,30]
[323492994,1714051190875,161368.45917263,0.00024,60]
[323492995,1714051601398,-459.83008477,0.00012776,2]
[323492996,1714051601421,-203.55772685,0.00012777,2]
[323492997,1714051601444,-300.0,0.00012875,2]
[323492998,1714051601467,-300.0,0.00012875,2]
[323492999,1714051601493,-59175.99909723,0.00012876,2]
[323493000,1714051601517,-410080.89277712,0.00012876,2]
[323493001,1714051601541,-24900.0,0.00012877,2]
[323493002,1714051601565,-250.0,0.00013009,2]
[323493003,1714051601587,-2216.3276475,0.0001305,2]
[323493004,1714051601610,-694.90050136,0.00013532,2]
[323493005,1714051601632,-3876.9901763,0.00013699,2]
[323493006,1714051601656,-1326.82107961,0.00014032,2]
[323493007,1714051601680,-420.0,0.00014163,2]
[323493008,1714051601703,-2099.98323324,0.00015,2]
[323493009,1714051601725,-9876.25192254,0.00015,2]
[323493010,1714051601748,-681.02656791,0.00015035,2]
[323493011,1714051601771,-894.57248373,0.00015036,2]
[323493012,1714051601795,-285.24433805,0.00015036,2]
[323493013,1714051601818,-501.55347884,0.00015036,2]
[323493014,1714051601848,-474.34996116,0.00015036,2]
[323493015,1714051601874,-548.87198569,0.00015036,2]
[323493016,1714051601896,-1041.83153632,0.00015036,2]
[323493017,1714051601919,-151.0,0.00015037,2]
[323493018,1714051601941,-151.0,0.00015037,2]
[323493019,1714051601964,-151.0,0.00015037,2]
[323493020,1714051601987,-151.0,0.00015037,2]
[323493021,1714051602010,-151.0,0.00015037,2]
[323493022,1714051602033,-151.0,0.00015038,2]
[323493023,1714051602055,-151.0,0.00015038,2]
[323493024,1714051602263,-151.0,0.00015038,2]
[323493025,1714051602287,-151.0,0.00015039,2]
[323493026,1714051602309,-151.0,0.00015039,2]
[323493027,1714051602335,-151.0,0.00015039,2]
[323493028,1714051602357,-151.0,0.00015039,2]
[323493029,1714051602380,-151.0,0.00015039,2]
[323493030,1714051602402,-246.871452,0.00015039,2]
[323493031,1714051602425,-151.0,0.00015039,2]
[323493032,1714051602447,-151.0,0.00015039,2]
[323493033,1714051602471,-151.0,0.00015039,2]
[323493034,1714051602496,-151.0,0.00015039,2]
[323493035,1714051602518,-151.0,0.00015039,2]
[323493036,1714051602540,-151.0,0.00015039,2]
[323493037,1714051602563,-215.0,0.00015039,2]
[323493038,1714051602588,-151.0,0.00015039,2]
[323493039,1714051602610,-151.0,0.00015039,2]
[323493040,1714051602632,-151.0,0.00015039,2]
[323493041,1714051602655,-151.0,0.00015039,2]
[323493042,1714051602677,-151.0,0.00015039,2]
[323493043,1714051602698,-151.0,0.00015039,2]
[323493044,1714051602720,-151.0,0.00015039,2]
[323493045,1714051602742,-151.0,0.00015039,2]
[323493046,1714051602765,-151.0,0.00015039,2]
[323493047,1714051602788,-151.0,0.00015039,2]
[323493048,1714051602809,-151.0,0.00015039,2]
[323493049,1714051602833,-151.0,0.00015039,2]
[323493050,1714051602855,-282.41134,0.00015039,2]
[323493051,1714051602877,-233.063019,0.00015039,2]
[323493052,1714051602899,-151.0,0.00015039,2]
[323493053,1714051602921,-151.0,0.00015039,2]
[323493054,1714051602943,-151.0,0.00015039,2]
[323493055,1714051602965,-151.0,0.00015039,2]
[323493056,1714051602986,-151.0,0.00015039,2]
[323493057,1714051603009,-151.0,0.00015039,2]
[323493058,1714051603031,-151.0,0.00015039,2]
[323493059,1714051603052,-153.866406,0.00015039,2]
[323493060,1714051603077,-151.0,0.00015039,2]
[323493061,1714051603099,-151.0,0.00015039,2]
[323493062,1714051603121,-151.0,0.00015039,2]
[323493063,1714051603143,-151.0,0.00015039,2]
[323493064,1714051603165,-151.0,0.00015039,2]
[323493065,1714051603188,-151.0,0.00015039,2]
[323493066,1714051603211,-151.0,0.00015039,2]
[323493067,1714051603233,-151.0,0.00015039,2]
[323493068,1714051603254,-151.0,0.00015039,2]
[323493069,1714051603276,-151.0,0.00015039,2]
[323493070,1714051603297,-151.0,0.00015039,2]
[323493071,1714051603319,-151.0,0.00015039,2]
[323493072,1714051603342,-151.0,0.00015039,2]
[323493073,1714051603363,-151.0,0.00015039,2]
[323493074,1714051603385,-261.249387,0.00015039,2]
[323493075,1714051603407,-396.948599,0.00015039,2]
[323493076,1714051603429,-396.948599,0.00015039,2]
[323493077,1714051603451,-396.948599,0.00015039,2]
[323493078,1714051603473,-396.948599,0.00015039,2]
[323493079,1714051603499,-396.948599,0.00015039,2]
[323493080,1714051603522,-396.948599,0.00015039,2]
[323493081,1714051603544,-396.948599,0.00015039,2]
[323493082,1714051603567,-396.948599,0.00015039,2]
[323493083,1714051603594,-396.948599,0.00015039,2]
[323493084,1714051603618,-396.948599,0.00015039,2]
[323493085,1714051603641,-396.948599,0.00015039,2]
[323493086,1714051603665,-396.948599,0.00015039,2]
[323493087,1714051603689,-396.948599,0.00015039,2]
[323493088,1714051603712,-396.948599,0.00015039,2]
[323493089,1714051603735,-396.948599,0.00015039,2]
[323493090,1714051603757,-396.948599,0.00015039,2]
[323493091,1714051603779,-396.948599,0.00015039,2]
[323493092,1714051603802,-396.948599,0.00015039,2]
[323493093,1714051603826,-151.0,0.00015039,2]
[323493094,1714051603851,-179.260984,0.00015039,2]
[323493095,1714051603874,-151.0,0.00015039,2]
[323493096,1714051603897,-151.0,0.00015039,2]
[323493097,1714051603919,-151.699765,0.00015039,2]
[323493098,1714051603943,-832.472645,0.00015039,2]
[323493099,1714051603968,-832.472645,0.00015039,2]
[323493100,1714051603990,-832.472645,0.00015039,2]
[323493101,1714051604014,-832.472645,0.00015039,2]
[323493102,1714051604037,-832.472645,0.00015039,2]
[323493103,1714051604061,-832.472645,0.00015039,2]
[323493104,1714051604083,-832.472645,0.00015039,2]
[323493105,1714051604106,-832.472645,0.00015039,2]
[323493106,1714051604129,-832.472645,0.00015039,2]
[323493107,1714051604151,-832.472645,0.00015039,2]
[323493108,1714051604173,-832.472645,0.00015039,2]
[323493109,1714051604196,-832.472645,0.00015039,2]
[323493110,1714051604218,-832.472645,0.00015039,2]
[323493111,1714051604241,-832.472645,0.00015039,2]
[323493112,1714051604263,-832.472645,0.00015039,2]
[323493113,1714051604287,-832.472645,0.00015039,2]
[323493114,1714051604311,-832.472645,0.00015039,2]
[323493115,1714051604338,-832.472645,0.00015039,2]
[323493116,1714051604360,-151.0,0.00015039,2]
[323493117,1714051604383,-151.0,0.00015039,2]
[323493118,1714051604407,-151.0,0.00015039,2]
[323493119,1714051604429,-151.0,0.00015039,2]
[323493120,1714051604451,-151.0,0.00015039,2]
[323493121,1714051604473,-151.0,0.00015039,2]
[323493122,1714051604496,-151.0,0.00015039,2]
[323493123,1714051604518,-151.0,0.00015039,2]
[323493124,1714051604541,-1333.837385,0.00015039,2]
[323493125,1714051604563,-1333.837385,0.00015039,2]
[323493126,1714051604587,-1333.837385,0.00015039,2]
[323493127,1714051604740,-1333.837385,0.00015039,2]
[323493128,1714051604763,-1333.837385,0.00015039,2]
[323493129,1714051604785,-1333.837385,0.00015039,2]
[323493130,1714051604808,-1333.837385,0.00015039,2]
[323493131,1714051604832,-1333.837385,0.00015039,2]
[323493132,1714051604856,-1333.837385,0.00015039,2]
[323493133,1714051604879,-1333.837385,0.00015039,2]
[323493134,1714051604902,-1333.837385,0.00015039,2]
[323493135,1714051604928,-1333.837385,0.00015039,2]
[323493136,1714051604951,-1333.837385,0.00015039,2]
[323493137,1714051604976,-1333.837385,0.00015039,2]
[323493138,1714051605000,-1333.837385,0.00015039,2]
[323493139,1714051605024,-209.516384,0.00015039,2]
[323493140,1714051605046,-1333.837385,0.00015039,2]
[323493141,1714051605069,-209.516384,0.00015039,2]
[323493142,1714051605093,-1333.837385,0.00015039,2]
[323493143,1714051605115,-209.516384,0.00015039,2]
[323493144,1714051605138,-1333.837385,0.00015039,2]
[323493145,1714051605161,-209.516384,0.00015039,2]
[323493146,1714051605185,-209.516384,0.00015039,2]
[323493147,1714051605207,-209.516384,0.00015039,2]
[323493148,1714051605230,-209.516384,0.00015039,2]
[323493149,1714051605252,-209.516384,0.00015039,2]
[323493150,1714051605274,-209.516384,0.00015039,2]
[323493151,1714051605312,-209.516384,0.00015039,2]
[323493152,1714051605338,-209.516384,0.00015039,2]
[323493153,1714051605362,-209.516384,0.00015039,2]
[323493154,1714051605386,-209.516384,0.00015039,2]
[323493155,1714051605410,-209.516384,0.00015039,2]
[323493156,1714051605434,-209.516384,0.00015039,2]
[323493157,1714051605458,-209.516384,0.00015039,2]
[323493158,1714051605484,-209.516384,0.00015039,2]
[323493159,1714051605510,-209.516384,0.00015039,2]
[323493160,1714051605533,-248.885351,0.00015039,2]
[323493161,1714051605556,-248.885351,0.00015039,2]
[323493162,1714051605583,-248.885351,0.00015039,2]
[323493163,1714051605607,-248.885351,0.00015039,2]
[323493164,1714051605630,-248.885351,0.00015039,2]
[323493165,1714051605653,-248.885351,0.00015039,2]
[323493166,1714051605676,-248.885351,0.00015039,2]
[323493167,1714051605700,-248.885351,0.00015039,2]
[323493168,1714051605722,-248.885351,0.00015039,2]
[323493169,1714051605745,-248.885351,0.00015039,2]
[323493170,1714051605769,-248.885351,0.00015039,2]
[323493171,1714051605793,-248.885351,0.00015039,2]
[323493172,1714051605816,-248.885351,0.00015039,2]
[323493173,1714051605842,-248.885351,0.00015039,2]
[323493174,1714051605865,-248.885351,0.00015039,2]
[323493175,1714051605888,-248.885351,0.00015039,2]
[323493176,1714051605910,-151.877114,0.00015039,2]
[323493177,1714051605933,-151.0,0.00015039,2]
[323493178,1714051605956,-151.0,0.00015039,2]
[323493179,1714051605979,-151.0,0.00015039,2]
[323493180,1714051606003,-151.0,0.00015039,2]
[323493181,1714051606027,-158.03863,0.00015039,2]
[323493182,1714051606051,-490.318941,0.00015039,2]
[323493183,1714051606077,-490.318941,0.00015039,2]
[323493184,1714051606100,-490.318941,0.00015039,2]
[323493185,1714051606124,-490.318941,0.00015039,2]
[323493186,1714051606148,-490.318941,0.00015039,2]
[323493187,1714051606170,-490.318941,0.00015039,2]
[323493188,1714051606194,-490.318941,0.00015039,2]
[323493189,1714051606216,-490.318941,0.00015039,2]
[323493190,1714051606239,-490.318941,0.00015039,2]
[323493191,1714051606261,-490.318941,0.00015039,2]
[323493192,1714051606284,-490.318941,0.00015039,2]
[323493193,1714051606306,-490.318941,0.00015039,2]
[323493194,1714051606343,-151.0,0.00015039,2]
[323493195,1714051606365,-151.0,0.00015039,2]
[323493196,1714051606389,-156.206243,0.00015039,2]
[323493197,1714051606412,-490.318941,0.00015039,2]
[323493198,1714051606434,-490.318941,0.00015039,2]
[323493199,1714051606458,-490.318941,0.00015039,2]
[323493200,1714051606482,-490.318941,0.00015039,2]
[323493201,1714051606507,-173.619965,0.00015039,2]
[323493202,1714051606532,-621.494974,0.00015039,2]
[323493203,1714051606555,-621.494974,0.00015039,2]
[323493204,1714051606580,-621.494974,0.00015039,2]
[323493205,1714051606602,-621.494974,0.00015039,2]
[323493206,1714051606624,-621.494974,0.00015039,2]
[323493207,1714051606646,-621.494974,0.00015039,2]
[323493208,1714051606669,-621.494974,0.00015039,2]
[323493209,1714051606692,-621.494974,0.00015039,2]
[323493210,1714051606714,-621.494974,0.00015039,2]
[323493211,1714051606737,-621.494974,0.00015039,2]
[323493212,1714051606762,-621.494974,0.00015039,2]
[323493213,1714051606785,-621.494974,0.00015039,2]
[323493214,1714051606807,-621.494974,0.00015039,2]
[323493215,1714051606831,-621.494974,0.00015039,2]
[323493216,1714051606853,-621.494974,0.00015039,2]
[323493217,1714051606877,-621.494974,0.00015039,2]
[323493218,1714051606900,-621.494974,0.00015039,2]
[323493219,1714051606923,-621.494974,0.00015039,2]
[323493220,1714051606945,-621.494974,0.00015039,2]
[323493221,1714051606970,-621.49498375,0.00015039,2]
[323493222,1714051606993,-151.0,0.00015039,2]
[323493223,1714051607016,-151.0,0.00015039,2]
[323493224,1714051607039,-151.0,0.00015039,2]
[323493225,1714051607062,-151.0,0.00015039,2]
[323493226,1714051607085,-151.0,0.00015039,2]
[323493227,1714051607109,-151.0,0.00015039,2]
[323493228,1714051607132,-151.0,0.00015039,2]
[323493229,1714051607157,-151.0,0.00015039,2]
[323493230,1714051607180,-151.0,0.00015039,2]
[323493231,1714051607344,-151.0,0.00015039,2]
[323493232,1714051607366,-151.0,0.00015039,2]
[323493233,1714051607389,-151.0,0.00015039,2]
[323493234,1714051607412,-259.19067,0.00015039,2]
[323493235,1714051607436,-151.0,0.00015039,2]
[323493236,1714051607459,-151.0,0.00015039,2]
[323493237,1714051607484,-364.820442,0.00015039,2]
[323493238,1714051607509,-151.0,0.00015039,2]
[323493239,1714051607532,-364.820442,0.00015039,2]
[323493240,1714051607554,-151.0,0.00015039,2]
[323493241,1714051607578,-151.0,0.00015039,2]
[323493242,1714051607600,-364.820442,0.00015039,2]
[323493243,1714051607623,-364.820442,0.00015039,2]
[323493244,1714051607645,-151.0,0.00015039,2]
[323493245,1714051607668,-364.820442,0.00015039,2]
[323493246,1714051607691,-151.0,0.00015039,2]
[323493247,1714051607713,-364.820442,0.00015039,2]
[323493248,1714051607737,-364.820442,0.00015039,2]
[323493249,1714051607762,-364.820442,0.00015039,2]
[323493250,1714051607785,-364.820442,0.00015039,2]
[323493251,1714051607808,-364.820442,0.00015039,2]
[323493252,1714051607830,-364.820442,0.00015039,2]
[323493253,1714051607853,-364.820442,0.00015039,2]
[323493254,1714051607875,-364.820442,0.00015039,2]
[323493255,1714051607900,-364.820442,0.00015039,2]
[323493256,1714051607924,-364.820442,0.00015039,2]
[323493257,1714051607947,-364.820442,0.00015039,2]
[323493258,1714051607974,-364.820442,0.00015039,2]
[323493259,1714051607999,-364.820442,0.00015039,2]
[323493260,1714051608023,-364.820442,0.00015039,2]
[323493261,1714051608046,-364.820446,0.00015039,2]
[323493262,1714051608068,-1346.857605,0.00015039,2]
[323493263,1714051608091,-1346.857605,0.00015039,2]
[323493264,1714051608114,-1346.857605,0.00015039,2]
[323493265,1714051608138,-1346.857605,0.00015039,2]
[323493266,1714051608161,-1346.857605,0.00015039,2]
[323493267,1714051608185,-1346.857605,0.00015039,2]
[323493268,1714051608207,-1346.857605,0.00015039,2]
[323493269,1714051608230,-1346.857605,0.00015039,2]
[323493270,1714051608254,-1346.857605,0.00015039,2]
[323493271,1714051608278,-1346.857605,0.00015039,2]
[323493272,1714051608302,-1346.857605,0.00015039,2]
[323493273,1714051608324,-1346.857605,0.00015039,2]
[323493274,1714051608348,-1346.857605,0.00015039,2]
[323493275,1714051608371,-1346.857605,0.00015039,2]
[323493276,1714051608394,-1346.857605,0.00015039,2]
[323493277,1714051608417,-1346.857605,0.00015039,2]
[323493278,1714051608440,-1346.857605,0.00015039,2]
[323493279,1714051608463,-1346.857605,0.00015039,2]
[323493280,1714051608488,-1346.857605,0.00015039,2]
[323493281,1714051608511,-1346.857605,0.00015039,2]
[323493282,1714051608535,-151.0,0.00015039,2]
[323493283,1714051608558,-151.0,0.00015039,2]
[323493284,1714051608585,-151.0,0.00015039,2]
[323493285,1714051608607,-151.0,0.00015039,2]
[323493286,1714051608631,-198.225672,0.00015039,2]
[323493287,1714051608654,-151.0,0.00015039,2]
[323493288,1714051608677,-151.0,0.00015039,2]
[323493289,1714051608699,-151.0,0.00015039,2]
[323493290,1714051608723,-151.0,0.00015039,2]
[323493291,1714051608746,-151.0,0.00015039,2]
[323493292,1714051608768,-151.0,0.00015039,2]
[323493293,1714051608791,-1305.26848,0.00015039,2]
[323493294,1714051608813,-151.0,0.00015039,2]
[323493295,1714051608838,-1305.26848,0.00015039,2]
[323493296,1714051608860,-151.0,0.00015039,2]
[323493297,1714051608882,-1305.26848,0.00015039,2]
[323493298,1714051608906,-151.0,0.00015039,2]
[323493299,1714051608928,-1305.26848,0.00015039,2]
[323493300,1714051608952,-151.0,0.00015039,2]
[323493301,1714051608975,-1305.26848,0.00015039,2]
[323493302,1714051608998,-151.0,0.00015039,2]
[323493303,1714051609021,-1305.26848,0.00015039,2]
[323493304,1714051609046,-198.105762,0.00015039,2]
[323493305,1714051609069,-1305.26848,0.00015039,2]
[323493306,1714051609093,-1305.26848,0.00015039,2]
[323493307,1714051609114,-1305.26848,0.00015039,2]
[323493308,1714051609137,-1305.26848,0.00015039,2]
[323493309,1714051609160,-1305.26848,0.00015039,2]
[323493310,1714051609183,-1305.26848,0.00015039,2]
[323493311,1714051609205,-1305.26848,0.00015039,2]
[323493312,1714051609227,-1305.26848,0.00015039,2]
[323493313,1714051609250,-1305.26848,0.00015039,2]
[323493314,1714051609272,-1305.26848,0.00015039,2]
[323493315,1714051609294,-1305.26848,0.00015039,2]
[323493316,1714051609317,-1305.26848,0.00015039,2]
[323493317,1714051609340,-1305.26848,0.00015039,2]
[323493318,1714051609363,-1305.26848,0.00015039,2]
[323493319,1714051609385,-427.968457,0.00015039,2]
[323493320,1714051609407,-427.968457,0.00015039,2]
[323493321,1714051609430,-427.968457,0.00015039,2]
[323493322,1714051609453,-427.968457,0.00015039,2]
[323493323,1714051609475,-427.968457,0.00015039,2]
[323493324,1714051609500,-427.968457,0.00015039,2]
[323493325,1714051609522,-427.968457,0.00015039,2]
[323493326,1714051609545,-427.968457,0.00015039,2]
[323493327,1714051609568,-427.968457,0.00015039,2]
[323493328,1714051609594,-427.968457,0.00015039,2]
[323493329,1714051609616,-427.968457,0.00015039,2]
[323493330,1714051609638,-427.968457,0.00015039,2]
[323493331,1714051609661,-427.968457,0.00015039,2]
[323493332,1714051609683,-427.968457,0.00015039,2]
[323493333,1714051609704,-427.968457,0.00015039,2]
[323493334,1714051609726,-427.968457,0.00015039,2]
[323493335,1714051609867,-427.968457,0.00015039,2]
[323493336,1714051609890,-427.968457,0.00015039,2]
[323493337,1714051609913,-427.968457,0.00015039,2]
[323493338,1714051609936,-427.968454,0.00015039,2]
[323493339,1714051609962,-587.0,0.00015579,2]
[323493340,1714051609985,-155.29350389,0.00015938,2]
[323493341,1714051610008,-2007.27952805,0.00016,2]
[323493342,1714051610034,-151.0,0.00016,2]
[323493343,1714051610057,-151.0,0.00016,2]
[323493344,1714051610082,-151.0,0.00016,2]
[323493345,1714051610104,-151.0,0.00016,2]
[323493346,1714051610128,-396.948599,0.00016,2]
[323493347,1714051610150,-396.948596,0.00016,2]
[323493348,1714051610173,-832.472645,0.00016,2]